Cogmind - Beta 16 @@@ ROGUE MODE // 2025.11.20 @ 22:44:45 // AFD2020/Player2 Player: daniels1231 Result: Self-destructed Performance ------------- Evolutions (1) 500 Regions Visited (4) 800 Robots Destroyed (29) 145 Value Destroyed (480) 480 Prototype IDs (0) 0 Alien Tech Used (0) 0 Bonus (70) 70 TOTAL SCORE: 1995 Bonus ------- High Alert Combat Kills 31 Follower Combat Kills 219 Friendly Fire -180 Cogmind --------- Core Integrity 228/400 Matter 280/300 Energy 265/265 System Corruption 0% Temperature Cool (0) Movement Walking (120) Location -9/Mines Parts ------- > --- POWER (1) -------- Improved Ion Engine > --- PROPULSION (4) --- Aluminum Leg Aluminum Leg Improved Aluminum Leg > --- UTILITY (2) ------ Small Storage Unit Light Armor Plating > --- WEAPON (2) ------- Medium Laser Light Assault Rifle > --- INVENTORY (8) ---- Ion Engine Hover Unit Medium Matter Pod (86) Medium Matter Pod (0) Medium Matter Pod (0) Propulsion Shielding Medium Laser Small Laser Peak State ------------ > --- POWER ------------ Deuterium Engine > --- PROPULSION ------- Aluminum Leg Aluminum Leg > --- UTILITY ---------- Small Storage Unit Light Armor Plating > --- WEAPON ----------- Medium Laser Rocket Launcher > --- INVENTORY -------- Ion Engine Medium Matter Pod Medium Matter Pod Medium Matter Pod Propulsion Shielding Medium Laser Small Laser Grenade Launcher [Rating: 10] Favorites ----------- Power Ion Engine Engine Ion Engine Propulsion Aluminum Leg Leg Aluminum Leg Hover Unit Hover Unit Utility Small Storage Unit Storage Small Storage Unit Protection Light Armor Plating Weapon Medium Laser Energy Gun Medium Laser Ballistic Gun Light Assault Rifle Launcher Rocket Launcher Build | -11 -10 -10 -9 -9 ------- Run | Yrd Mat Min Mat Min Slots Evolved 2 | . . . 2 . Power . | . . . . . Propulsion 2 | . . . 2 . Utility . | . . . . . Weapon . | . . . . . Parts Attached 18 | 6 2 1 9 . Power 3 | 1 . . 2 . Engine 3 | 1 . . 2 . Core . | . . . . . Reactor . | . . . . . Propulsion 6 | 2 . . 4 . Treads . | . . . . . Leg 5 | 2 . . 3 . Wheel . | . . . . . Hover 1 | . . . 1 . Flight . | . . . . . Utility 3 | 1 1 . 1 . Device . | . . . . . Storage 1 | 1 . . . . Processor . | . . . . . Hackware . | . . . . . Protection 2 | . 1 . 1 . Artifact . | . . . . . Weapon 6 | 2 1 1 2 . Energy Gun 2 | 2 . . . . Energy Cannon . | . . . . . Ballistic Gun 2 | . . . 2 . Ballistic Cannon . | . . . . . Launcher 2 | . 1 1 . . Special Weapon . | . . . . . Impact Weapon . | . . . . . Slashing Weapon . | . . . . . Piercing Weapon . | . . . . . Special Melee Weapon . | . . . . . Unidentified Prototypes . | . . . . . Parts Lost 4 | . . . 4 . Power 1 | . . . 1 . Propulsion 1 | . . . 1 . Utility . | . . . . . Weapon 2 | . . . 2 . Highest Loss Streak 4 | . . . 4 . To Critical Strikes . | . . . . . Average Backups 5 | 4 1 6 7 8 Power . | . . . . 1 Propulsion . | 2 . . . 1 Utility 2 | . . 4 4 4 Weapon 2 | 1 1 2 2 2 Tool/Special . | . . . . . Unused Backups 8 | . 6 . . 2 Power 1 | . 1 . . . Propulsion 4 | . 4 . . . Utility 1 | . . . . 1 Weapon 2 | . 1 . . 1 Tool/Special . | . . . . . Average Slot Usage (%) 87 | . 94 100 73 88 Engine 11 | . 14 14 8 11 Leg 27 | . 28 28 22 33 Storage 12 | . 14 14 11 11 Protection 10 | . 8 14 10 11 Energy Gun 12 | . 15 14 11 11 Ballistic Gun 2 | . . . 1 11 Launcher 9 | . 12 14 7 . Peak Build Rating 10 | 6 7 8 10 10 Average Rating 7 | 4 6 7 8 10 On Entrance 6 | . 6 7 8 10 Avg Prop Armor Cover (%) 9 | . . . 9 . Naked Turns . | . . . . . Heaviest Build 23 | 13 18 19 23 18 Greatest Support 33 | 20 20 20 33 33 Greatest Overweight (x) 3 | . . . 3 . Average Overweight (x) . | . . . . . Largest Inventory Capacity 8 | 8 8 8 8 8 Average Capacity 7 | 6 8 8 8 8 Most Carried 8 | 7 6 7 8 8 Average Carried 5 | 4 1 6 7 8 Final Capacity 8 | 8 8 8 8 8 Final Carried 8 | 6 6 7 8 8 Class Distribution -------------------- 79% | Mutant 20% | Scavenger-Mutant Dominant Class ---------------- Mutant | -10/Materials Mutant | -10/Mines Mutant | -9/Materials Scavenger-Mutant | -9/Mines Resources | -11 -10 -10 -9 -9 ----------- Run | Yrd Mat Min Mat Min Matter Collected 723 | 215 38 62 340 68 Remotely . | . . . . . Salvage Created 393 | 7 53 . 333 . Parts 46 | 2 10 . 34 . Haulers Intercepted . | . . . . . Recyclers Shooed 1 | . . . 1 . Parts Field Recycled . | . . . . . Retrieved Matter . | . . . . . Parts Self-Destructed . | . . . . . Prevented . | . . . . . Parts Restored . | . . . . . Kills | -11 -10 -10 -9 -9 ------- Run | Yrd Mat Min Mat Min Combat Hostiles Destroyed 23 | . 6 . 17 . Guns 2 | . 1 . 1 . AOE 21 | . 5 . 16 . Classes Destroyed 7 | 1 1 . 5 . Worker 3 | 1 1 . 1 . Mechanic 1 | . . . 1 . Watcher 2 | . . . 2 . Swarmer 17 | . 6 . 11 . Grunt 3 | . . . 3 . Duelist 1 | . . . 1 . Sentry 2 | . . . 2 . Best Kill Streak 14 | 1 4 . 14 . Combat Bots Only 13 | . 3 . 13 . Max Kills in Single Turn 7 | 1 3 . 7 . Gunslinging . | . . . . . Exploded 6 | . 2 . 6 . Melee . | . . . . . Uniques/NPCs Destroyed . | . . . . . Combat | -11 -10 -10 -9 -9 -------- Run | Yrd Mat Min Mat Min Hostile Shots Fired 110 | . 14 . 92 4 Missed 43 | . 5 . 38 . Hits 67 | . 9 . 54 4 Projectile 67 | . 9 . 54 4 Critical Strikes 3 | . 1 . 2 . Damage Taken 768 | . 73 . 663 32 Core 160 | . 26 . 134 . Absorbed by Shields . | . . . . . Core Remaining (%) 92 | 100 . 85 . . Volleys Fired 44 | 2 9 . 31 2 Largest 2 | 2 2 . 2 2 Hottest 90 | 90 80 . 83 70 Shots Fired 76 | 4 15 . 53 4 Gun 50 | 4 9 . 33 4 Cannon . | . . . . . Launcher 26 | . 6 . 20 . Special . | . . . . . Kinetic 4 | . . . 2 2 Thermal 46 | 4 9 . 31 2 Explosive 26 | . 6 . 20 . Electromagnetic . | . . . . . Robot Hit Streak 9 | 4 1 . 9 1 Robot Miss Streak 3 | . 3 . 2 2 Penetration Max . | . . . . . Secondary Targets . | . . . . . Shots Hit Robots 48 | 4 4 . 39 1 Core Hits 48 | 2 8 . 38 . Critical Kills . | . . . . . Critical Parts Destroyed . | . . . . . Critical Strikes 3 | . . . 3 . Burn 3 | . . . 3 . Melee Attacks . | . . . . . Impact . | . . . . . Slashing . | . . . . . Piercing . | . . . . . Sneak Attacks . | . . . . . Combat Hostiles . | . . . . . Follow-up Attacks . | . . . . . Damage Inflicted 1751 | 50 348 7 1333 13 Guns 378 | 47 24 . 294 13 Cannons . | . . . . . Explosions 1359 | . 323 . 1036 . Melee . | . . . . . Ramming 14 | 3 1 7 3 . Kinetic 9 | . . . 9 . Thermal 369 | 47 24 . 285 13 Explosive 1359 | . 323 . 1036 . Electromagnetic . | . . . . . Impact . | . . . . . Slashing . | . . . . . Piercing . | . . . . . Highest Corruption . | . . . . . Average Corruption . | . . . . . Corruption Purged . | . . . . . Corruption Blocked . | . . . . . Overload Shots . | . . . . . Overflow Damage 2 | . 2 . . . Projectiles . | . . . . . Explosions 2 | . 2 . . . Melee . | . . . . . Knockbacks . | . . . . . Impact . | . . . . . Kinetic . | . . . . . Secondary . | . . . . . Self-Inflicted Damage 45 | . . . 45 . Shots 1 | . . . 1 . Rammed . | . . . . . Targets Rammed 5 | 1 1 2 1 . Kicked 5 | 1 1 2 1 . Crushed . | . . . . . Highest Temperature 270 | 60 54 . 270 45 Average Temperature 69 | 35 17 . 88 24 Received Heat Transfer 165 | . . . 165 . Siege Activations . | . . . . . Martial Activations . | . . . . . Shielding Activations . | . . . . . Robots Disrupted . | . . . . . Combat Hostiles . | . . . . . Robots Corrupted . | . . . . . Combat Hostiles . | . . . . . Parts Fried . | . . . . . Impact Corruptions . | . . . . . Robots Melted . | . . . . . Combat Hostiles . | . . . . . Parts Melted . | . . . . . Heat Transferred 1308 | 124 74 . 1073 37 Parts Sabotaged . | . . . . . Parts Stolen . | . . . . . Parts Stripped . | . . . . . Power Chain Reactions . | . . . . . Alert | -11 -10 -10 -9 -9 ------- Run | Yrd Mat Min Mat Min Maximum Alert Level 2 | . . . 2 1 Low Security (%) 74 | 100 100 100 61 . Level 1 15 | . . . 6 100 Level 2 10 | . . . 32 . Level 3 . | . . . . . Level 4 . | . . . . . Level 5 . | . . . . . High Security . | . . . . . Max Security . | . . . . . Peak Influence 679 | 5 174 32 679 380 Initial 253 | . 3 32 . 253 Average 149 | . 85 4 258 337 Influence Increases 1206 | 5 204 . 870 127 Destroy 0b10 Robot/C 680 | . 120 . 480 80 Destroy 0b10 Robot/NC 30 | 5 5 . 20 . Destroy Leader 134 | . 20 . 104 10 Allied During Kill 201 | . 35 . 144 22 Disable Machine 15 | . . . . 15 Destroy Structure 146 | . 24 . 122 . Influence Decreases 916 | . 125 84 218 489 Entered New Map 453 | . 2 52 . 399 Time Decay 423 | . 123 32 178 90 Lost Part 40 | . . . 40 . Squads Dispatched 1 | . . . 1 . Investigation . | . . . . . Extermination . | . . . . . Reinforcement 1 | . . . 1 . Assault . | . . . . . Garrison . | . . . . . Intercept . | . . . . . Searches Triggered . | . . . . . Construction Impeded 1 | . . . 1 . Haulers Reinforced . | . . . . . Active Scanning Responses . | . . . . . Cargo Convoy Interrupts . | . . . . . Stealth | -11 -10 -10 -9 -9 --------- Run | Yrd Mat Min Mat Min Distress Signals 7 | . 2 . 5 . Communications Jammed . | . . . . . Distress Signals . | . . . . . Times Spotted 53 | . 10 . 27 16 Peak Tracking Total 13 | . 4 . 13 9 Tactical Retreats 1 | . . . . 1 Traps | -11 -10 -10 -9 -9 ------- Run | Yrd Mat Min Mat Min Traps Triggered . | . . . . . Indirectly . | . . . . . Trap Hack Attempts . | . . . . . Triggered . | . . . . . Disarmed . | . . . . . Reprogrammed . | . . . . . Reused . | . . . . . Traps Extracted . | . . . . . Installed . | . . . . . Triggered . | . . . . . Machines | -11 -10 -10 -9 -9 ---------- Run | Yrd Mat Min Mat Min Machines Disabled 1 | . . . . 1 Max in Single Turn . | . . . . . Machines Repaired . | . . . . . Machines Dismantled . | . . . . . Machines Sabotaged . | . . . . . Overloaded Fab Kills . | . . . . . Hacking | -11 -10 -10 -9 -9 --------- Run | Yrd Mat Min Mat Min Machines Accessed . | . . . . . Terminals . | . . . . . Fabricators . | . . . . . Repair Stations . | . . . . . Recycling Units . | . . . . . Scanalyzers . | . . . . . Garrison Access . | . . . . . Total Hacks . | . . . . . Successful . | . . . . . Failed . | . . . . . Catastrophic . | . . . . . Database Lockouts . | . . . . . Manual . | . . . . . Terminals . | . . . . . Fabricators . | . . . . . Repair Stations . | . . . . . Recycling Units . | . . . . . Scanalyzers . | . . . . . Garrison Access . | . . . . . Terminal Hacks . | . . . . . Fabricator Hacks . | . . . . . Repair Station Hacks . | . . . . . Recycling Unit Hacks . | . . . . . Scanalyzer . | . . . . . Garrison Access Hacks . | . . . . . Unauthorized Hacks . | . . . . . Terminals . | . . . . . Fabricators . | . . . . . Repair Stations . | . . . . . Recycling Units . | . . . . . Scanalyzers . | . . . . . Garrison Access . | . . . . . Data Cores Recovered . | . . . . . Used . | . . . . . Hacking Detections . | . . . . . Full Trace Events . | . . . . . Feedback Events . | . . . . . Feedback Blocked . | . . . . . Robot Schematics Acquired . | . . . . . Robots Built . | . . . . . Authchips . | . . . . . Time . | . . . . . Total Robot Build Rating . | . . . . . Part Schematics Acquired . | . . . . . Parts Built . | . . . . . Authchips . | . . . . . Time . | . . . . . Total Part Build Rating . | . . . . . Part Studies Acquired . | . . . . . Parts Repaired . | . . . . . Time . | . . . . . Parts Recycled . | . . . . . Recycled Matter . | . . . . . Retrieved Matter . | . . . . . Retrieved Components . | . . . . . Parts Scanalyzed . | . . . . . Part Schematics Acquired . | . . . . . Parts Damaged . | . . . . . Bothacking | -11 -10 -10 -9 -9 ------------ Run | Yrd Mat Min Mat Min Used RIF Installer . | . . . . . Robots Hacked . | . . . . . Non-combat . | . . . . . Combat . | . . . . . Robot Hacks Applied . | . . . . . Relay Couplers Released . | . . . . . Fabnet Peak Effective % . | . . . . . Robots Rewired . | . . . . . Allies Hacked . | . . . . . Hacks Repelled . | . . . . . Allies | -11 -10 -10 -9 -9 -------- Run | Yrd Mat Min Mat Min Total Allies 1 | . 1 . . . Largest Group 1 | . 1 1 1 1 Highest-Rated Group 67 | . 58 61 67 67 Highest-Rated Ally 67 | . 58 61 67 67 Total Orders . | . . . . . Ally Attacks 46 | . 15 . 20 11 Total Damage 599 | . 113 . 351 135 Kills 12 | . . . 7 5 Allies Corrupted . | . . . . . Allies Melted . | . . . . . Intel | -11 -10 -10 -9 -9 ------- Run | Yrd Mat Min Mat Min Active Infowar (turns) . | . . . . . Robot Analysis Total . | . . . . . Derelict Logs Recovered . | . . . . . Drone Launches . | . . . . . Drone Recoveries . | . . . . . Exploration | -11 -10 -10 -9 -9 ------------- Run | Yrd Mat Min Mat Min Turns Passed 1313 | 110 321 290 411 181 Spaces Moved 856 | 77 236 211 186 146 Core 8 | 6 . . 2 . Treads . | . . . . . Legs 843 | 71 236 211 179 146 Wheels . | . . . . . Hover 5 | . . . 5 . Flight . | . . . . . Fastest Speed 50 | 50 120 120 120 120 Average Speed 128 | 114 120 120 161 120 Slowest Speed 200 | 120 120 120 200 120 Overloaded Moves . | . . . . . Propulsion Burnouts . | . . . . . Robots Hopped . | . . . . . Potential Cave-ins . | . . . . . Cave-ins Triggered . | . . . . . Exploration Rate (%) 29 | 4 38 51 23 32 Regions Visited 4 Branch Regions 2 Pre-discovered Areas . | . . . . . Known Exits Taken . | . . . . . Unknown Exits Taken 4 | 1 1 1 1 . Scrap Searched 1 | . . 1 . . Spaces Dug . | . . . . . Terrain Destroyed 170 | . 28 . 142 . Melee . | . . . . . Projectile . | . . . . . AOE 170 | . 28 . 142 . Terrain Rammed . | . . . . . Walls Destroyed . | . . . . . Machines Disabled . | . . . . . Actions | -11 -10 -10 -9 -9 --------- Run | Yrd Mat Min Mat Min Total 991 | 92 261 247 243 148 Wait 43 | . . 34 9 . Move 852 | 76 235 210 185 146 Hop . | . . . . . Pick Up 12 | 7 5 . . . Fast Attach 16 | 5 2 . 9 . Attach 3 | 1 1 . 1 . Detach 4 | . 2 . 2 . Swap 2 | . . 1 1 . Drop 10 | . 6 . 4 . Fire 44 | 2 9 . 31 2 Melee . | . . . . . Ram . | . . . . . Kick 5 | 1 1 2 1 . Crush . | . . . . . Escape Stasis . | . . . . . Rewire . | . . . . . Trap . | . . . . . Miscellaneous . | . . . . . Route ------- -11/Scrapyard -10/Materials -10/Mines -9/Materials -9/Mines History --------- Turn | Location | Event 13 | -11/Scrapyard | Discovered new exit (range 16) 111 | -11/Scrapyard | Entered Materials 311 | -10/Materials | Discovered new exit (range 8) 315 | -10/Materials | Build established: Mutant 432 | -10/Materials | Entered Mines 448 | -10/Mines | Received a Rocket Launcher from a helpful Derelict 564 | -10/Mines | A weapon hastily lodged in a ceiling crevice suddenly fell to the ground 680 | -10/Mines | Discovered new exit (range 5) 722 | -10/Mines | Entered Materials 722 | -9/Materials | Evolved 2 slots: Propulsion x2 979 | -9/Materials | Discovered new exit (range 15) 1024 | -9/Materials | Destroyed 13 combat bots 1049 | -9/Materials | Lost 4 parts (1p1n2w) 1133 | -9/Materials | Entered Mines 1154 | -9/Mines | Met a Derelict bent on vengeance 1282 | -9/Mines | Assembled infested the area 1314 | -9/Mines | Self-destructed Last Messages --------------- LOCATION=UNKNOWN GOAL=ESCAPE 01134_ S-10 Pest destroyed. 01135_ Seismic Survey Station disabled. 01137_ S-10 Pest destroyed. 01145_ Player 2 drops Flight Unit. 01145_ Player 2 acquires Flight Unit. 01150_ Player 2 drops EM Pulse Gun. 01150_ Player 2 acquires Lgt. Assault Rifle. 01151_ Acquired 20 matter. 01153_ Acquired 34 matter. 01154_ Player 2 drops Lgt. Assault Rifle. 01154_ Player 2 acquires Lgt. Assault Rifle. 01156_ Acquired 14 matter. 01211_ K-01 Serf collects debris. 01282_ ALERT: Infestation in the mines, dispatching Demolisher response squad. Player 2: "Quick, hide!" 01313_ as-67308 destroyed. 01314_ T-07 Excavator destroyed. Map ----- +----------------------------------------------------+ | ?????????????????????????????????????????????????? | | ?????????????????????????????????????????????????? | | ?????????????????????????????????????????????????? | | ?????????????????????????????????????????????????? | | ?????????????????????????????????????????????????? | | ?????????????????????????????????????????????????? | | ?????????????????????????????????????????????????? | | ?????????????????????????????????????????????????? | | ?????????????????????????????????????????????????? | | ?????????????????????????????????????????????????? | | ?????????????????????????????????????????????????? | | ?????????????????????????????????????????????????? | | ?????????????????????????????????????????????????? | | ?????????????????????????????????????????????????? | | ???????????????????##????????????????????????????? | | ???????????????????# ????????????????????????????? | | ????????????????#### ???????????????????????????? | | ???????????????## ???????????????????????????? | | ???????????????# = ???????????????????????????? | | ???????????????# =!%#??????????????????????????? | | ???????????????# %! ##????????????????????????? | | ????????????????# ##???????????????????????? | | ?????????????????# aaaa #???????????????????????? | | ?????????????????# a aa#???????????????????????? | | ?????????????????# ##a@####????????????????????? | | ????????????????# ??# @ #????????????????????? | | ???????????????# ???##### #????????????????????? | | ??????????????# ?????????# #????????????????????? | | ????????????? ??????????# #????????????????????? | | ??????????? ???????????# #????????????????????? | | ???????????# ?????????????# #?####???????????????# | | ???????????#??????????????# #?# ????????????????# | | ??????????????????????????# #?# #????????????????# | | ??????????????????????????# ### ##???????????????# | | ??????????????????????????# #???????????????# | | ??????????????????????????##### #???###?????????# | | ??????????????????????????????# #??# ##????????# | | ?????????????????????????????## ##? ##???????# | | ????????????????????????????## ## #???????? | | ????????????????????######### #???????? | | ????????????????????# #???????? | | ????????????????????# ##??????? | | ????????????????????# ### #??????? | | ????????????????????????# ### #?????? | | ???????????????????????## ##??? #????? | | ???????????????????????# ##????? ???? | | ???????????????????????# ##?????? ???? | | ???????????????????????## #??????? ????? | | ????????????????????????##### #?????????????# | | ????????????????????????????# #????????????## | +----------------------------------------------------+ Best States ------------- Heat Dissipation 28 Energy Generation 14 Energy Capacity 275 Matter Stores 300 Matter Capacity 300 Sight Range 16 Terrain Scan Density 10 Armor Coverage 150 Evasion (%) 55 Item Schematics ----------------- None Robot Schematics ------------------ None Fabricated ------------ Nothing Repaired ---------- Nothing Studied --------- None Alien Tech Used ----------------- None Achievements -------------- None Challenges ------------ None Player 2 | -11 -10 -10 -9 -9 ---------- Run | Yrd Mat Min Mat Min Slots Evolved 2 | . . 2 . . Power . | . . . . . Propulsion 1 | . . 1 . . Utility 1 | . . 1 . . Weapon . | . . . . . Parts Attached 14 | . 7 1 6 . Parts Lost . | . . . . . Damage Taken 414 | . 52 . 91 271 Core 48 | . 10 . . 38 Player 2/Cogmind (%) 23 | . 27 . . 100 Absorbed by Shields . | . . . . . Damage Inflicted 599 | . 113 . 351 135 Player 2/Cogmind (%) 25 | . 24 . 20 91 Combat Hostiles Destroyed 12 | . . . 7 5 Player 2/Cogmind (%) 34 | . . . 29 100 Game ------ Seed DeepCatalystReconfigurator Manual? 0 Play Time 00:08:41 Cumulative 15.2 hours Start 2025.11.20 @ 22:37:02 End 2025.11.20 @ 22:44:45 Sessions 1 Manual Loads 0 Difficulty Rogue Special Mode AFD2020/Player2 Game No. 37 Rogue 33 Adventurer 4 Explorer 0 Win Type - Total 0 Types 0/0/0/0/0/0/0/0/0/0 Lore% 4 Gallery% 18 Achievement% 16 Wizard Run 0 Options --------- Layout 2 ASCII 0 Keyboard 0 Movement Arrows Keybinds 1 Fullscreen 2 Font 32/SmallcapsGlow Map View 50x44 Zoom Use 0% Tactical HUD 1 Map Filters NONE Filters NONE Steam 1 RUN: 11f6b7ac-deee-4d6c-a384-a744115958ea